[Event "FIDE WTC Prel-A 2022"]
[Site "Jerusalem"]
[Date "2022.11.21"]
[Round "4.6"]
[White "Xu, Xiangyu"]
[Black "Van Foreest, Lucas"]
[Result "1-0"]
[ECO "E04"]
[WhiteElo "2577"]
[BlackElo "2585"]
[Annotator "TA"]
[PlyCount "101"]
[EventDate "2022.11.20"]
[EventType "team-tourn"]
[EventCountry "ISR"]
[SourceTitle "playchess.com"]
[Source "ChessBase"]
[SourceQuality "1"]
[WhiteTeam "China"]
[BlackTeam "Netherlands"]
[WhiteTeamCountry "CHN"]
[BlackTeamCountry "NED"]
[TimeControl "2700+10"]

{[%evp 11,101,13,16,20,18,27,25,11,40,30,66,68,68,79,100,95,92,119,119,119,114,120,129,124,117,127,133,140,143,131,142,110,107,107,104,112,129,127,128,129,137,118,137,137,137,137,137,137,137,137,137,0,137,119,119,119,137,130,137,137,133,136,137,129,140,140,147,140,147,127,127,127,127,127,133,118,144,170,602,183,2990,2731,5077,4352,29971,29972,29975,29976,29977,29979,29978,29979]} 1. d4 {[%emt 0:00:03]} d5 {[%emt 0:00:02]} 2. Nf3 {[%emt 0:00:08]} Nf6 {[%emt 0:00:07]} 3. c4 {[%emt 0:00:06]} e6 {[%emt 0:00:05]} 4. g3 {[%emt 0:00:03]} dxc4 {[%emt 0:00:16]} 5. Bg2 {[%emt 0:00:02]} Bb4+ {[%emt 0:00:02]} 6. Bd2 {[%emt 0:00:02]} a5 {[%emt 0:00:08]} 7. Qc2 {[%emt 0:00:06] E04: Open Catalan: 5 Nf3.} Bxd2+ {[%emt 0:00:24]} 8. Qxd2 {[%emt 0:00:05]} c6 {[%emt 0:00:10]} 9. a4 {[%emt 0:00:19] White has an edge.} b5 {[%emt 0:00:07]} (9... Ne4 $5 {[%cal Re4d2]} 10. Qf4 Qb6 $11) 10. Na3 {[%emt 0:00:14][%cal Bb1a3,Ba3b5,Bb5d6][%mdl 32]} Qb6 {[%emt 0:03:38]} (10... bxa4 11. Nxc4 Ba6 12. Rxa4 $16) 11. axb5 {[%emt 0:01:30]} cxb5 {[%emt 0:00:07] And now ...0-0 would win.} 12. Qg5 $1 {[%emt 0:00:07][%csl LRb5,LRg7]} O-O {[%emt 0:00:10]} 13. Qxb5 {[%emt 0:00:05]} (13. Nxb5 Ne4 14. Qe3 Bb7 $17) 13... Qxb5 {[%emt 0:00:03]} 14. Nxb5 {[%emt 0:00:06]} Bb7 {[%emt 0:00:05] [#]} 15. O-O $1 {[%emt 0:00:45]} (15. Nd6 $6 Bd5 $11) 15... Nbd7 {[%emt 0:05:29]} 16. Nd6 {[%emt 0:03:35][%csl LRb7,LRc4]} Bd5 {[%emt 0:05:49]} 17. Nd2 {[%emt 0:00:17]} Nb6 {[%emt 0:02:00] [#]} 18. Rfc1 $146 {[%emt 0:00:14]} ({Predecessor:} 18. e4 Rad8 19. Nxf7 Rxf7 20. exd5 Nfxd5 21. Rxa5 c3 22. bxc3 Nxc3 23. Re1 Rxd4 24. Nf3 {½-½ (62) Cheparinov,I (2664)-Dreev,A (2623) Warsaw 2021}) 18... Rfd8 {[%emt 0:09:16] Against e4. Strongly threatening ...Bxg2.} 19. N6xc4 {[%emt 0:00:25]} Nxc4 {[%emt 0:00:05]} 20. Nxc4 {[%emt 0:00:02]} Rab8 {[%emt 0:00:16]} 21. Rxa5 {[%emt 0:05:37]} Bxc4 {[%emt 0:00:03]} 22. Rxc4 {[%emt 0:00:03] Threatens to win with b4.} Rxb2 {[%emt 0:00:02]} 23. Bf3 {[%emt 0:00:03]} Rbb8 {[%emt 0:01:44]} 24. g4 {[%emt 0:01:31]} h6 {[%emt 0:00:48]} 25. h4 {[%emt 0:00:12]} g6 {[%emt 0:02:43]} 26. e3 {[%emt 0:00:44]} Rd7 {[%emt 0:00:37]} 27. Kg2 {[%emt 0:00:41]} Kg7 {[%emt 0:00:06]} 28. Rcc5 {[%emt 0:01:40]} Rbd8 {[%emt 0:01:34]} 29. Kg3 {[%emt 0:00:41]} Rb8 {[%emt 0:00:18]} 30. Ra1 {[%emt 0:01:04]} Rbd8 {[%emt 0:00:18]} 31. Raa5 {[%emt 0:06:55]} Rb8 $1 {[%emt 0:00:05]} 32. Bc6 {[%emt 0:00:14] Black is now going downhill.} Rc7 {[%emt 0:00:08]} 33. Bg2 {[%emt 0:00:45]} Rd7 {[%emt 0:00:13]} 34. Ra6 {[%emt 0:00:27]} Rbd8 {[%emt 0:00:35]} 35. Bc6 {[%emt 0:05:25]} Rc7 {[%emt 0:00:26]} 36. Bf3 {[%emt 0:00:06]} Rcd7 {[%emt 0:00:02]} 37. g5 {[%emt 0:00:13]} Ng8 {[%emt 0:00:04]} 38. Bc6 {[%emt 0:00:41]} Rc7 {[%emt 0:00:03]} 39. Be4 {[%emt 0:00:40]} Rcd7 {[%emt 0:00:01]} 40. Rac6 {[%emt 0:01:19] White has more active pieces.} Ne7 {[%emt 0:00:33]} 41. Rc7 {[%emt 0:00:05]} Nf5+ {[%emt 0:01:35]} 42. Bxf5 {[%emt 0:00:38]} gxf5 {[%emt 0:00:05]} 43. Kf4 {[%emt 0:00:41]} Rxc7 {[%emt 0:03:02]} 44. Rxc7 $16 {[%emt 0:00:16][%mdl 4096] Endgame h5 is the strong threat. KR-KR} Rh8 $2 {[%emt 0:00:31]} (44... h5 45. f3 Ra8) 45. d5 $2 {[%emt 0:02:13]} (45. h5) 45... Kg6 $2 {[%emt 0:03:21]} (45... hxg5+ 46. Kxg5 (46. hxg5 Rh4+ 47. Ke5 Re4+ 48. Kd6 exd5 $14) 46... exd5) 46. d6 $18 {[%emt 0:02:10][%cal Bd5d6,Bd6d7][%mdl 32]} hxg5+ {[%emt 0:00:02] [#]} 47. Ke5 $1 {[%emt 0:00:08]} ({And not} 47. hxg5 f6 48. e4 (48. gxf6 Kxf6 49. d7 Rd8 $11) 48... e5+ 49. Ke3 Rd8 $11) 47... gxh4 {[%emt 0:04:06]} 48. d7 {[%emt 0:00:02] White mates.} Rd8 {[%emt 0:00:14]} 49. Kd6 {[%emt 0:00:06]} h3 {[%emt 0:00:06]} 50. Rc8 {[%emt 0:00:12][%mdl 64] Trapped Piece} Rxd7+ {[%emt 0:01:32]} 51. Kxd7 {[%emt 0:00:03] Weighted Error Value: White=0.15 (very precise) /Black=0.30} 1-0

[Event "FIDE WTC Prel-A 2022"]
[Site "Jerusalem"]
[Date "2022.11.21"]
[Round "4.7"]
[White "Warmerdam, Max"]
[Black "Bai, Jinshi"]
[Result "0-1"]
[ECO "D33"]
[WhiteElo "2617"]
[BlackElo "2569"]
[Annotator "TA"]
[PlyCount "60"]
[EventDate "2022.11.20"]
[EventType "team-tourn"]
[EventCountry "ISR"]
[SourceTitle "playchess.com"]
[Source "ChessBase"]
[SourceQuality "1"]
[WhiteTeam "Netherlands"]
[BlackTeam "China"]
[WhiteTeamCountry "NED"]
[BlackTeamCountry "CHN"]
[TimeControl "2700+10"]

{[%evp 15,60,36,52,16,24,26,16,23,10,7,2,8,7,0,0,7,0,14,12,-6,-8,-12,-15,0,0,-27,-39,-28,-50,-47,-10,-20,-12,-58,-14,-200,-179,-167,-157,-427,-412,-714,-714,-707,-698,-669,-567]} 1. c4 {[%emt 0:00:03]} c5 {[%emt 0:00:25]} 2. Nf3 {[%emt 0:00:02]} Nf6 {[%emt 0:00:04]} 3. Nc3 {[%emt 0:00:04]} e6 {[%emt 0:00:40]} 4. g3 {[%emt 0:00:11]} d5 {[%emt 0:00:03]} 5. cxd5 {[%emt 0:00:02]} exd5 {[%emt 0:00:02]} 6. d4 {[%emt 0:00:01]} Nc6 {[%emt 0:00:03]} 7. Bg2 {[%emt 0:03:18]} cxd4 $1 {[%emt 0:00:07][%mdl 4] outshines the older 7...Be7.} 8. Nxd4 {[%emt 0:00:03]} Bc5 {[%emt 0:00:02]} 9. Be3 {[%emt 0:01:27] D33: Tarrasch Defence: 6 g3 sidelines.} (9. Nb3 $5 {[%cal Rb3c5]} Bb6 10. O-O $11 (10. Bxd5 Nb4 $15) (10. Nxd5 O-O $11)) 9... Qb6 {[%emt 0:00:07][%csl LRb2,LRd4][%cal Rc5d4]} 10. Na4 $1 {[%emt 0:00:01]} Qb4+ {[%emt 0:00:01]} 11. Bd2 {[%emt 0:00:01] The position is equal.} Qxd4 {[%emt 0:00:02][%csl Gc5][%cal Rd4f2]} 12. e3 $1 {[%emt 0:00:01]} Qe5 {[%emt 0:00:03] White must now prevent ...Bg4.} ({Don't do} 12... Qc4 13. b3 Qd3 14. Nxc5 $14) 13. Nxc5 {[%emt 0:00:02]} Qxb2 {[%emt 0:00:02]} 14. O-O {[%emt 0:00:02]} O-O {[%emt 0:00:03]} 15. Nd3 {[%emt 0:00:01]} Qa3 {[%emt 0:00:14]} 16. Bc1 {[%emt 0:00:01]} Qe7 {[%emt 0:00:03] [#]} 17. Qb3 $146 {[%emt 0:01:26][%mdl 1024] White has compensation.} ({Predecessor:} 17. Bb2 Rd8 18. Nf4 Be6 19. Qa4 Ne4 20. Rfd1 f6 21. Rab1 Bf7 22. Ba3 Qc7 23. Nxd5 Rxd5 24. Rxd5 Bxd5 25. Bxe4 Bxe4 26. Qxe4 {½-½ (63) Abdusattorov,N (2661)-Oparin,G (2674) Chess.com INT 2022}) 17... Na5 {[%emt 0:06:03]} 18. Qb5 {[%emt 0:12:14]} Nc4 {[%emt 0:01:26]} 19. Nf4 {[%emt 0:00:03]} Be6 {[%emt 0:03:07]} 20. Rb1 {[%emt 0:00:35]} b6 {[%emt 0:02:02]} 21. Rd1 {[%emt 0:00:40]} Rac8 {[%emt 0:02:13]} 22. Bb2 {[%emt 0:01:09]} Rc5 {[%emt 0:31:58]} 23. Bxf6 {[%emt 0:04:19]} Qxf6 {[%emt 0:00:00]} 24. Qb4 {[%emt 0:00:02]} (24. Qb3 $11) 24... Rd8 {[%emt 0:00:00]} (24... Ne5 $5 {[%cal Rg7g5]}) 25. Nxd5 $2 {[%emt 0:00:39]} Rcxd5 {[%emt 0:00:00]} ({Inferior is} 25... Bxd5 26. Bxd5 Nxe3 27. Bxf7+ Kxf7 28. fxe3 $11) 26. Bxd5 {[%emt 0:01:33]} Rxd5 {[%emt 0:00:00]} ({Worse is} 26... Bxd5 {[#]} 27. Rxd5 $1 Rxd5 28. Qxc4 $11) 27. Qa4 $2 {[%emt 0:01:46] Loses the game.} (27. Rxd5 $17 Bxd5 28. Qb5) 27... g6 $19 {[%emt 0:00:00][%cal Of6f3] And now ...Qf3! would win.} 28. e4 {[%emt 0:06:54] [#]} (28. Rxd5 $142 Bxd5 29. e4) 28... Qf3 $1 {[%emt 0:00:00][%cal Oe6h3] Black is clearly winning.} 29. Qb3 {[%emt 0:00:42]} Qxe4 {[%emt 0:00:00] ( -> ...Bh3)} 30. Re1 {[%emt 0:00:03]} Qd4 {[%emt 0:00:00] Weighted Error Value: White=0.49/Black=0.04 (flawless)} 0-1

[Event "FIDE WTC Prel-A 2022"]
[Site "Jerusalem"]
[Date "2022.11.21"]
[Round "4.8"]
[White "Li, Di"]
[Black "Kevlishvili, Robby"]
[Result "1-0"]
[ECO "D32"]
[WhiteElo "2539"]
[BlackElo "2536"]
[Annotator "TA"]
[PlyCount "111"]
[EventDate "2022.11.20"]
[EventType "team-tourn"]
[EventCountry "ISR"]
[SourceTitle "playchess.com"]
[Source "ChessBase"]
[SourceQuality "1"]
[WhiteTeam "China"]
[BlackTeam "Netherlands"]
[WhiteTeamCountry "CHN"]
[BlackTeamCountry "NED"]
[TimeControl "2700+10"]

{[%evp 20,111,37,37,26,37,37,31,42,39,44,38,39,47,71,72,72,73,60,56,62,39,32,45,49,38,31,16,39,40,29,3,14,7,23,0,11,22,26,9,6,0,0,0,9,0,25,10,15,20,47,49,47,57,59,65,79,79,77,44,66,53,224,250,243,231,229,209,397,402,389,383,401,427,411,407,350,393,339,347,638,631,616,587,1488,1338,5800,5235,4132,719,719,719,977,954]} 1. Nf3 {[%emt 0:00:02]} d5 {[%emt 0:00:03]} 2. e3 {[%emt 0:00:02]} Nf6 {[%emt 0:00:06]} 3. c4 {[%emt 0:00:02]} e6 {[%emt 0:00:19]} 4. b3 {[%emt 0:00:14]} Bd6 {[%emt 0:01:50]} 5. Bb2 {[%emt 0:00:02]} O-O {[%emt 0:00:08]} 6. Nc3 {[%emt 0:00:45]} c5 {[%emt 0:02:42]} 7. cxd5 {[%emt 0:00:15]} exd5 {[%emt 0:00:02]} 8. d4 {[%emt 0:00:01]} Nc6 {[%emt 0:00:43]} 9. Be2 {[%emt 0:00:13]} Re8 {[%emt 0:02:04]} 10. dxc5 {[%emt 0:01:30]} Bxc5 {[%emt 0:00:02]} 11. O-O {[%emt 0:00:07]} Be6 {[%emt 0:00:25] D32: Tarrasch Defence: Sidelines and lines without g3.} 12. Rc1 {[%emt 0:00:12][%cal Oc3d5]} Qe7 {[%emt 0:00:55]} 13. Nb5 {[%emt 0:05:15]} Ne4 {[%emt 0:03:58] White is slightly better.} 14. Nbd4 {[%emt 0:01:47]} Rac8 {[%emt 0:00:41] [#]} 15. Nxe6 $146 {[%emt 0:00:44]} ({Predecessor:} 15. Nxc6 bxc6 16. Nd4 Bd7 17. Bg4 Bd6 18. Nf5 Bxf5 19. Bxf5 Rc7 20. Qg4 {½-½ (43) Hassan,A (2357)-Pert,N (2501) Caleta 2005}) 15... fxe6 {[%emt 0:01:56]} 16. Bd3 {[%emt 0:00:13] This bishop pair is nice.} Nb4 {[%emt 0:07:28]} 17. Bb1 {[%emt 0:00:13]} Bd6 {[%emt 0:00:57]} 18. Qe2 {[%emt 0:01:08]} Nf6 {[%emt 0:00:54]} 19. Ne5 {[%emt 0:02:07]} Nc6 {[%emt 0:00:37]} 20. Ng4 {[%emt 0:03:36]} Nxg4 {[%emt 0:04:52]} 21. Qxg4 {[%emt 0:00:03] Threatens to win with Qh5.} Ba3 {[%emt 0:00:41]} 22. Bxa3 {[%emt 0:02:33]} Qxa3 {[%emt 0:00:02]} 23. h4 {[%emt 0:01:34]} Qb2 {[%emt 0:00:26]} 24. Rcd1 {[%emt 0:00:58]} Qf6 {[%emt 0:00:22]} 25. h5 {[%emt 0:00:25]} Ne5 {[%emt 0:00:16]} 26. Qg3 {[%emt 0:00:33]} Rc3 {[%emt 0:02:10]} 27. Rc1 {[%emt 0:05:24]} (27. f4 $5 {[%cal Rf4e5]} Nd7 28. Qe1 $11) 27... Rxc1 {[%emt 0:02:56]} 28. Rxc1 {[%emt 0:00:02]} Nc6 $1 {[%emt 0:00:01]} 29. Rf1 {[%emt 0:04:08]} Rf8 {[%emt 0:00:37]} 30. Qg4 {[%emt 0:01:26]} Ne5 {[%emt 0:01:00]} 31. Qg3 {[%emt 0:02:38]} Nc6 {[%emt 0:00:15]} 32. Qg4 {[%emt 0:01:31]} Qh6 {[%emt 0:01:24]} 33. f4 {[%emt 0:00:37]} Ne5 {[%emt 0:00:21]} 34. Qh3 {[%emt 0:00:36]} Nd7 {[%emt 0:00:29]} 35. Rc1 {[%emt 0:00:51][%cal Ob1g6]} Rf7 {[%emt 0:00:56]} 36. Rc8+ {[%emt 0:00:29]} Nf8 $1 {[%emt 0:00:02]} 37. Bd3 {[%emt 0:00:46][%cal Bb1d3,Bd3e2,Be2h5][%mdl 32]} a6 {[%emt 0:00:54]} 38. Qg4 {[%emt 0:04:03]} Qf6 {[%emt 0:02:05]} 39. Qg5 {[%emt 0:00:08] Against e5. White is much more active.} Qa1+ {[%emt 0:00:47]} 40. Kh2 {[%emt 0:00:03][%cal Od3g6] aiming for Bg6!} Qd1 $2 {[%emt 0:01:52] [#] This costs Black the game.} (40... Rf6 $1 $14) 41. h6 $1 $18 {[%emt 0:00:08][%cal Oc8f8] Rxf8+! would kill now. Really sharp!} Qa1 {[%emt 0:00:41] [#]} 42. Be2 $1 {[%emt 0:02:01]} Qf6 {[%emt 0:00:48]} 43. Bh5 $40 {[%emt 0:00:17][%mdl 128] White attacks with force.} g6 {[%emt 0:01:27]} (43... Rd7 44. Bg4 Re7) 44. Qxf6 {[%emt 0:00:05]} Rxf6 {[%emt 0:00:01][%mdl 4096] Endgame KRB-KRN} 45. Bg4 {[%emt 0:00:42]} Kf7 {[%emt 0:00:10]} 46. Rc7+ {[%emt 0:00:04]} Ke8 {[%emt 0:00:01]} 47. Rxb7 {[%emt 0:00:08]} d4 {[%emt 0:00:07]} 48. exd4 {[%emt 0:00:18]} Rxf4 {[%emt 0:00:02]} 49. Be2 {[%emt 0:00:01]} Nd7 $2 {[%emt 0:00:23]} (49... a5 50. Bb5+ Kd8) 50. Bxa6 {[%emt 0:00:13] White is clearly winning.} Nf6 {[%emt 0:00:01]} 51. a4 {[%emt 0:00:24][%cal Ba2a4,Ba4a5][%mdl 32]} g5 {[%emt 0:00:18]} 52. a5 {[%emt 0:00:14] Bb5+ is the strong threat.} Ng4+ {[%emt 0:00:02]} 53. Kg3 {[%emt 0:00:11]} Nxh6 {[%emt 0:00:08]} 54. Rxh7 {[%emt 0:00:20]} (54. Bb5+ $142 Kd8 55. a6 (55. Rd7+ Kc8 $18) 55... Nf5+ 56. Kh2) 54... Nf5+ {[%emt 0:00:01]} 55. Kh2 {[%emt 0:00:02] Hoping for Bb5+.} Kf8 {[%emt 0:01:13]} 56. Bc4 {[%emt 0:00:15] Weighted Error Value: White=0.07 (flawless) /Black=0.22 (precise)} 1-0

[Event "FIDE WTC Prel-A 2022"]
[Site "Jerusalem"]
[Date "2022.11.21"]
[Round "4.9"]
[White "Vachier-Lagrave, Maxime"]
[Black "Solomon, Kenny"]
[Result "1-0"]
[ECO "C88"]
[WhiteElo "2736"]
[BlackElo "2355"]
[Annotator "TA"]
[PlyCount "95"]
[EventDate "2022.11.20"]
[EventType "team-tourn"]
[EventCountry "ISR"]
[SourceTitle "playchess.com"]
[Source "ChessBase"]
[SourceQuality "1"]
[WhiteTeam "France"]
[BlackTeam "South Africa"]
[WhiteTeamCountry "FRA"]
[BlackTeamCountry "RSA"]
[TimeControl "2700+10"]

{[%evp 21,95,17,29,0,31,0,3,0,0,5,13,6,49,45,27,7,64,0,77,79,84,73,74,72,67,80,122,89,90,78,77,85,88,87,97,98,93,82,184,76,108,83,85,10,9,9,9,11,11,8,10,0,0,0,120,120,120,111,119,73,145,144,179,173,226,189,214,207,260,260,265,268,318,312,1435,1382]} 1. e4 {[%emt 0:00:02]} e5 {[%emt 0:00:03]} 2. Nf3 {[%emt 0:00:03]} Nc6 {[%emt 0:00:02]} 3. Bb5 {[%emt 0:00:04]} a6 {[%emt 0:00:01]} 4. Ba4 {[%emt 0:00:02]} Nf6 {[%emt 0:00:02]} 5. O-O {[%emt 0:00:02]} Be7 {[%emt 0:00:04]} 6. Re1 {[%emt 0:00:02]} b5 {[%emt 0:00:01]} 7. Bb3 {[%emt 0:00:02]} O-O {[%emt 0:00:02]} 8. a4 {[%emt 0:00:03]} b4 {[%emt 0:00:02]} 9. a5 {[%emt 0:00:38]} d6 {[%emt 0:01:15]} 10. d3 {[%emt 0:00:22]} Rb8 {[%emt 0:00:21]} 11. Nbd2 {[%emt 0:00:05]} Be6 {[%emt 0:00:10]} 12. Nc4 {[%emt 0:00:02] C88: Closed Ruy Lopez: Anti-Marshall Systems.} h6 {[%emt 0:01:46]} 13. h3 {[%emt 0:00:56]} Nd7 {[%emt 0:05:19]} 14. Be3 {[%emt 0:00:49] The position is equal.} Bf6 {[%emt 0:00:12]} 15. c3 {[%emt 0:00:38]} bxc3 {[%emt 0:08:05]} 16. bxc3 {[%emt 0:00:19]} d5 {[%emt 0:00:34] [#]} 17. exd5 $146 {[%emt 0:00:09]} ({Predecessor:} 17. Ba4 dxe4 18. dxe4 Ne7 19. Qe2 Ng6 20. Ncd2 Qc8 21. Bc2 Qb7 22. Kh2 Be7 23. Bd3 {½-½ (43) Vavulin,M (2550)-Kaczur,F (2483) Porec 2022}) 17... Bxd5 {[%emt 0:00:02]} 18. Nfd2 {[%emt 0:01:46]} Be7 {[%emt 0:04:36]} ({Black should try} 18... Qe7 $11) 19. Bc2 {[%emt 0:02:32]} (19. Ba4 $14) 19... Bg5 {[%emt 0:04:30]} (19... f5 $11 {remains equal.} 20. f3 Bh4) 20. Bxg5 $16 {[%emt 0:01:19]} Qxg5 {[%emt 0:00:04][%csl Gd5][%cal Rg5g2] [#]} 21. Ne3 {[%emt 0:00:03]} Be6 {[%emt 0:01:32]} 22. Ba4 {[%emt 0:00:27]} Ne7 {[%emt 0:03:19]} 23. Nf3 {[%emt 0:00:30]} Qf4 {[%emt 0:00:57]} 24. g3 {[%emt 0:00:02]} Qf6 {[%emt 0:00:07] [#]} 25. Ng4 $1 {[%emt 0:01:36]} Bxg4 {[%emt 0:00:03]} 26. hxg4 {[%emt 0:00:05]} c6 {[%emt 0:00:32]} 27. d4 {[%emt 0:02:53]} exd4 {[%emt 0:00:29]} 28. cxd4 {[%emt 0:01:29]} Rb2 {[%emt 0:03:52]} 29. Rc1 {[%emt 0:01:06][%cal Od4d5]} Rfb8 {[%emt 0:00:07]} (29... Rd8 $16) 30. Bc2 {[%emt 0:01:27]} (30. d5 $18 {is more deadly.}) 30... R2b5 {[%emt 0:07:28]} 31. Ra1 {[%emt 0:00:32]} c5 {[%emt 0:01:01]} 32. Qe2 {[%emt 0:01:53]} (32. Ba4 $16) 32... Nc6 $11 {[%emt 0:01:40]} 33. d5 {[%emt 0:02:55]} Nd4 {[%emt 0:00:11]} 34. Nxd4 {[%emt 0:00:02]} cxd4 {[%emt 0:00:03]} 35. Rab1 $40 {[%emt 0:02:27][%mdl 128] Black needs to defend precisely.} Rxb1 {[%emt 0:00:02]} 36. Rxb1 {[%emt 0:00:22]} Rxb1+ {[%emt 0:00:41]} 37. Bxb1 {[%emt 0:00:01][%mdl 4096] Endgame Qe8+ is the strong threat. KQB-KQN} Kf8 {[%emt 0:01:23] Against Qe8+} (37... Qe5 $11 38. Qxe5 Nxe5) 38. Bf5 {[%emt 0:00:46] White is more active.} Nc5 {[%emt 0:00:22]} 39. Qc4 {[%emt 0:00:03]} Qd6 {[%emt 0:00:22]} 40. Qxd4 {[%emt 0:00:03]} (40. Bc2 $142) 40... g6 {[%emt 0:00:14]} (40... Nb7 $142) 41. Bc2 {[%emt 0:00:18]} Kg8 {[%emt 0:00:07]} 42. Bd1 {[%emt 0:00:52]} Nd7 {[%emt 0:00:10]} (42... Kf8 {was worth a try.} 43. Be2 Kg8) 43. Kg2 {[%emt 0:00:15]} Kh7 {[%emt 0:00:02]} 44. Be2 {[%emt 0:00:12]} Nc5 {[%emt 0:00:09]} 45. Bc4 {[%emt 0:00:21] Inhibits Nb3.} Kg8 {[%emt 0:00:16]} 46. Qb2 {[%emt 0:00:04]} Nd7 {[%emt 0:00:15]} 47. Qb7 {[%emt 0:00:21]} Nc5 $2 {[%emt 0:00:01]} (47... Nb8 48. Qa7 Kf8) 48. Qc6 {[%emt 0:00:07] Weighted Error Value: White=0.17 (very precise) /Black=0.31} 1-0

[Event "FIDE WTC Prel-A 2022"]
[Site "Jerusalem"]
[Date "2022.11.21"]
[Round "4.10"]
[White "Cawdery, Daniel"]
[Black "Fressinet, Laurent"]
[Result "0-1"]
[ECO "C47"]
[WhiteElo "2396"]
[BlackElo "2622"]
[Annotator "TA"]
[PlyCount "66"]
[EventDate "2022.11.20"]
[EventType "team-tourn"]
[EventCountry "ISR"]
[SourceTitle "playchess.com"]
[Source "ChessBase"]
[SourceQuality "1"]
[WhiteTeam "South Africa"]
[BlackTeam "France"]
[WhiteTeamCountry "RSA"]
[BlackTeamCountry "FRA"]
[TimeControl "2700+10"]

{[%evp 17,66,-1,0,0,0,0,0,0,0,0,21,15,20,17,23,16,24,0,0,-6,-7,-15,0,0,0,0,0,0,0,-17,-12,-120,-110,-103,-90,-112,-109,-105,-100,-76,-116,-110,0,-69,-85,-147,-150,-424,-424,-534,-514]} 1. e4 {[%emt 0:00:03]} e5 {[%emt 0:00:02]} 2. Nf3 {[%emt 0:00:03]} Nc6 {[%emt 0:00:03]} 3. Nc3 {[%emt 0:00:06]} Nf6 {[%emt 0:00:10]} 4. d4 {[%emt 0:00:06]} exd4 {[%emt 0:01:09]} 5. Nxd4 {[%emt 0:00:03]} Bb4 {[%emt 0:00:02]} 6. Nxc6 {[%emt 0:00:10]} bxc6 {[%emt 0:00:03]} 7. Bd3 {[%emt 0:00:03]} O-O {[%emt 0:00:28]} 8. O-O {[%emt 0:00:05]} d5 {[%emt 0:00:04]} 9. exd5 {[%emt 0:00:02]} cxd5 {[%emt 0:00:09]} 10. Qf3 {[%emt 0:00:30] C47: Scotch Four Knights and Four Knights with 4 g3.} c6 {[%emt 0:03:57]} 11. h3 {[%emt 0:00:14]} Bd6 {[%emt 0:01:02]} 12. Bf4 {[%emt 0:00:19] The position is equal.} Be6 {[%emt 0:01:01]} 13. Rfe1 {[%emt 0:01:49]} h6 {[%emt 0:02:50]} 14. Ne2 {[%emt 0:03:06]} c5 {[%emt 0:01:02]} 15. Rad1 {[%emt 0:02:55]} Rb8 {[%emt 0:00:20]} 16. b3 {[%emt 0:00:39]} Re8 {[%emt 0:00:27]} 17. c4 {[%emt 0:11:35]} d4 {[%emt 0:00:39]} 18. Ng3 {[%emt 0:02:00]} Bxf4 {[%emt 0:06:00]} 19. Qxf4 {[%emt 0:00:03]} Qa5 {[%emt 0:00:39]} 20. Ne4 {[%emt 0:04:12]} Nxe4 {[%emt 0:01:33]} 21. Qxe4 {[%emt 0:00:10] Threatens to win with Qh7+.} g6 {[%emt 0:00:48] aiming for ...Bd7.} 22. Qf4 {[%emt 0:01:46][%cal Oe1e6] [#] And now Rxe6! would win.} Bd7 $146 {[%emt 0:02:51]} (22... Qxa2 $2 23. Rxe6 $1 {[%mdl 512]} Rxe6 24. Qxb8+ $18) ({Predecessor:} 22... Bf5 23. Re5 Bxd3 24. Rxd3 Rxe5 25. Qxe5 Rc8 26. Rxd4 Qxa2 27. Rd7 Qxb3 28. Qd5 Qb1+ {1-0 (42) Zelcic,R (2554)-Bayer,B (2449) Austria 2013}) 23. Kf1 {[%emt 0:08:06]} Qxa2 {[%emt 0:07:40]} 24. Qd6 {[%emt 0:01:15]} (24. Qxh6 $11 {was the only way to keep the balance.} Rxe1+ 25. Rxe1) 24... Rxe1+ $17 {[%emt 0:03:35]} ({Reject} 24... Qxb3 $6 25. Qxd7 Rxe1+ 26. Kxe1 $11) 25. Rxe1 {[%emt 0:00:18]} Qxb3 {[%emt 0:00:03]} 26. Bxg6 {[%emt 0:00:23]} Qxc4+ {[%emt 0:00:44]} ({But not} 26... fxg6 27. Qxg6+ Kh8 28. Qxh6+ Kg8 29. Qg5+ Kh8 30. Qh6+ Kg8 31. Qg6+ Kh8 32. Qh6+ $16) 27. Kg1 {[%emt 0:00:01]} Re8 {[%emt 0:00:11]} 28. Rxe8+ {[%emt 0:03:59]} Bxe8 {[%emt 0:00:04] KQB-KQB} 29. Bf5 {[%emt 0:00:03] [#]} Qc1+ $1 {[%emt 0:02:08]} 30. Kh2 {[%emt 0:00:02]} Qg5 {[%emt 0:00:18]} 31. Be4 {[%emt 0:01:14]} (31. Bd3 $142) 31... Kg7 {[%emt 0:01:03]} 32. Bd5 $2 {[%emt 0:02:29]} (32. Kg1 $17) 32... d3 $19 {[%emt 0:01:15]} 33. Qxc5 {[%emt 0:01:25]} Qe5+ {[%emt 0:00:29] Weighted Error Value: White=0.34/Black=0.03 (flawless)} 0-1